bitfinex-derivatives/quotes_ETHF0:USTF0_20250317
["timestamp","ask_amount","ask_price","bid_price","bid_amount"]
[1742212693642,1.04588,1912.4,1912.3,5.7077]
[1742212693842,5.08368,1912.4,1912.3,4.2537]
[1742212694037,5.365,1912.4,1912.3,4.2537]
[1742212694246,4.6622,1912.4,1912.3,4.2537]
[1742212694545,4.6622,1912.4,1912.3,1.0459]
[1742212694741,5.3254,1912.4,1912.3,1.0459]
[1742212695850,6.37128,1912.4,1912.3,1.0459]
[1742212698251,7.24775089,1912.4,1912.3,1.0459]
[1742212698950,6.20187089,1912.4,1912.3,1.0459]
[1742212699353,6.20187089,1912.4,1912.3,2.4898]
[1742212699749,4.6622,1912.4,1912.3,2.4898]
[1742212700660,1.3272,1912.4,1912.3,2.4898]
[1742212700844,4.6622,1912.4,1912.3,2.4898]
[1742212701349,1.3272,1912.4,1912.3,2.4898]
[1742212701548,4.6622,1912.4,1912.3,2.4898]
[1742212701948,4.6622,1912.4,1912.3,43.2898]
[1742212702149,4.6622,1912.4,1912.3,44.0018]
[1742212702450,0.87642446,1912.6,1912.5,1.04583]
[1742212702655,3.33485446,1912.7,1912.6,1.04578]
[1742212702855,6.66985446,1912.7,1912.6,1.04578]
[1742212703757,8.05705446,1912.7,1912.6,2.46578]
[1742212704663,8.05705446,1912.7,1912.6,1.04578]
[1742212704850,1.04578,1912.6,1912.5,2.46581]
[1742212705050,3.30940446,1912.6,1912.5,2.46581]
[1742212705355,3.30940446,1912.6,1912.5,1.04581]
[1742212710354,2.26362446,1912.6,1912.5,1.04581]
[1742212710755,2.26362446,1912.6,1912.5,2.49281]
[1742212711263,3.30940446,1912.6,1912.5,2.49281]
[1742212712465,3.30940446,1912.6,1912.5,1.04581]
[1742212713353,1.04588,1912.5,1912.4,1.04585]
[1742212713556,5.79428,1912.5,1912.4,1.04585]
[1742212713765,6.67070446,1912.5,1912.4,1.04585]
[1742212717764,6.67070446,1912.5,1912.4,2.38505]
[1742212718763,5.62482446,1912.5,1912.4,2.38505]
[1742212718967,6.67065446,1912.5,1912.4,2.38505]
[1742212719855,5.62482446,1912.5,1912.4,2.38505]
[1742212720154,4.7484,1912.5,1912.4,2.38505]
[1742212720557,5.62482446,1912.5,1912.4,2.38505]
[1742212721268,6.67065446,1912.5,1912.4,2.38505]
[1742212721669,5.62482446,1912.5,1912.4,2.38505]
[1742212722070,6.67065446,1912.5,1912.4,2.38505]
[1742212722271,5.62482446,1912.5,1912.4,2.38505]
[1742212724072,6.67065446,1912.5,1912.4,2.38505]
[1742212724966,5.62482446,1912.5,1912.4,2.38505]
[1742212725167,5.62482446,1912.5,1912.4,3.06285]
[1742212725873,4.7484,1912.5,1912.4,3.06285]
[1742212726072,5.62482446,1912.5,1912.4,3.06285]
[1742212727272,6.67065446,1912.5,1912.4,2.38505]
[1742212727467,5.62482446,1912.5,1912.4,2.38505]
[1742212727676,6.67065446,1912.5,1912.4,2.38505]
[1742212728376,5.62482446,1912.5,1912.4,2.38505]
[1742212728568,5.79423,1912.5,1912.4,2.38505]
[1742212728768,6.67065446,1912.5,1912.4,2.38505]
[1742212729575,6.67065446,1912.5,1912.4,1.04585]
[1742212730571,1.04594,1912.4,1912.3,1.0459]
[1742212730869,4.60796446,1912.4,1912.3,1.0459]
[1742212731874,4.60790446,1912.4,1912.3,1.0459]
[1742212732079,4.60790446,1912.4,1912.3,2.4046]
[1742212732080,3.56202446,1912.4,1912.3,2.4046]
[1742212733378,4.60790446,1912.4,1912.3,2.4046]
[1742212733579,4.60790446,1912.4,1912.3,1.0459]
[1742212737275,1.04599,1912.3,1912.2,1.04598]
[1742212737579,6.61101446,1912.3,1912.2,1.04598]
[1742212739074,6.61101446,1912.3,1912.2,2.37018]
[1742212744284,6.61101446,1912.3,1912.2,1.3242]
[1742212744483,6.61101446,1912.3,1912.2,2.37019]
[1742212744684,1.04599,1912.2,1912.1,41.84601]
[1742212744885,2.46019,1912.2,1912.1,41.84601]
[1742212745086,1.04616,1912.0,1911.9,1.04612]
[1742212745283,1.04616,1912.0,1911.7,0.6868]
[1742212745284,3.334,1912.0,1911.7,0.6868]
[1742212745481,1.04621,1911.8,1911.7,2.37061]
[1742212745682,4.38021,1911.8,1911.7,2.37061]
[1742212745885,5.77171,1911.8,1911.7,2.37061]
[1742212746084,5.77171,1911.8,1911.7,43.17061]
[1742212747285,5.77171,1911.8,1911.7,41.84621]
[1742212748186,5.77171,1911.8,1911.7,40.8]
[1742212748681,5.77171,1911.8,1911.7,41.84627]
[1742212748885,5.77171,1911.8,1911.7,40.8]
[1742212749285,5.77171,1911.8,1911.6,1.04628]
[1742212749286,1.04627,1911.7,1911.6,1.04628]
[1742212749587,2.49007,1911.7,1911.6,1.04628]
[1742212750388,1.04632,1911.6,1911.5,43.15664]
[1742212750599,5.82512,1911.6,1911.5,43.15664]
[1742212751492,4.7788,1911.6,1911.5,43.15664]
[1742212753297,1.4438,1911.6,1911.5,43.15664]
[1742212753495,30.4025,1911.8,1911.7,1.04627]
[1742212753700,33.7375,1911.8,1911.7,1.04627]
[1742212754196,34.78371,1911.8,1911.7,42.51367]
[1742212754401,33.7375,1911.8,1911.7,42.51367]
[1742212754584,34.78371,1911.8,1911.7,42.51367]
[1742212755699,29.011,1911.8,1911.7,42.51367]
[1742212755996,32.346,1911.8,1911.7,42.51367]
[1742212756189,32.346,1911.8,1911.7,43.93027]
[1742212756190,3.335,1911.8,1911.7,43.93027]
[1742212756495,4.7689,1911.9,1911.8,1.04621]
[1742212756697,4.7689,1911.9,1911.8,2.46281]
[1742212760400,5.81506,1911.9,1911.8,2.46281]
[1742212760604,4.7689,1911.9,1911.8,2.46281]
[1742212761294,5.81506,1911.9,1911.8,2.46281]
[1742212761495,4.7689,1911.9,1911.8,2.46281]
[1742212766204,1.04609,1912.1,1912.0,1.0461]
[1742212766405,5.08499,1912.1,1912.0,1.0461]
[1742212767507,6.50899,1912.1,1912.0,1.0461]
[1742212768310,7.38427637,1912.1,1912.0,1.0461]
[1742212768808,6.50899,1912.1,1912.0,1.0461]
[1742212769405,7.38436358,1912.1,1912.0,1.0461]
[1742212770209,6.50899,1912.1,1912.0,1.0461]
[1742212773914,1.0461,1912.0,1911.9,1.3732]
[1742212774212,1.04619,1911.9,1911.8,1.04616]
[1742212774410,5.05819,1911.9,1911.8,2.48676]
[1742212774810,6.46149,1911.9,1911.8,2.48676]
[1742212777516,5.4153,1911.9,1911.8,2.48676]
[1742212778009,6.46146,1911.9,1911.8,2.48676]
[1742212778214,6.46146,1911.9,1911.8,1.04616]
[1742212778613,1.04621,1911.8,1911.7,2.37723]
[1742212778814,3.08761,1911.8,1911.7,2.37723]
[1742212779622,3.08761,1911.8,1911.7,1.331]
[1742212779922,3.08761,1911.8,1911.7,2.37727]
[1742212780520,3.08761,1911.8,1911.7,1.04627]
[1742212781516,3.08761,1911.8,1911.7,2.39577]
[1742212782916,2.0414,1911.8,1911.7,2.39577]
[1742212786828,3.08761,1911.8,1911.7,2.39577]
[1742212787121,3.08761,1911.8,1911.7,1.04627]
[1742212787927,3.08761,1911.8,1911.7,2.40017]
[1742212790622,3.08761,1911.8,1911.7,1.04627]
[1742212790931,3.96454904,1911.8,1911.7,1.04627]
[1742212792423,3.08761,1911.8,1911.7,1.04627]
[1742212794025,3.08761,1911.8,1911.7,2.42327]
[1742212795330,1.04627,1911.7,1911.6,40.8]
[1742212795524,5.83447,1911.7,1911.6,42.2115]
[1742212796323,5.83447,1911.7,1911.6,43.25779]
[1742212797229,4.7882,1911.7,1911.6,43.25779]
[1742212797429,5.83447,1911.7,1911.6,43.25779]
[1742212797832,4.7882,1911.7,1911.6,43.25779]
[1742212798023,5.83447,1911.7,1911.6,43.25779]
[1742212799122,4.7882,1911.7,1911.6,43.25779]
[1742212800433,4.7882,1911.7,1911.6,46.46559]
[1742212803224,4.7882,1911.7,1911.6,43.25779]
[1742212803427,5.83447,1911.7,1911.6,43.25779]
[1742212803629,4.7882,1911.7,1911.6,43.25779]
[1742212803826,5.83447,1911.7,1911.6,43.25779]
[1742212804231,4.7882,1911.7,1911.6,43.25779]
[1742212804541,5.83447,1911.7,1911.6,41.84629]
[1742212805042,6.71208914,1911.7,1911.6,1.04629]
[1742212805337,6.71208914,1911.7,1911.5,1.33]
[1742212805338,1.04637,1911.6,1911.5,1.04636]
[1742212805540,2.0362,1911.6,1911.4,2.37638]
[1742212805732,5.04968,1911.5,1911.4,2.37638]
[1742212805926,6.42898,1911.5,1911.4,1.04638]
[1742212806330,6.42903,1911.5,1911.4,1.04643]
[1742212806737,5.3826,1911.5,1911.4,2.35713]
[1742212807241,3.335,1911.7,1911.6,1.04632]
[1742212807836,4.6706,1911.7,1911.6,43.15702]
[1742212816346,5.71687,1911.7,1911.6,40.8]
[1742212816543,1.04634,1911.6,1911.4,1.3564]
[1742212816738,2.009,1911.6,1911.4,1.3564]
[1742212816939,4.38138,1911.5,1911.4,43.20281]
[1742212817140,5.70878,1911.5,1911.4,41.84641]
[1742212817349,5.70878,1911.5,1911.2,6.0]
[1742212817350,7.8702,1911.5,1911.2,6.0]
[1742212817546,1.04649,1911.3,1911.2,1.04654]
[1742212817839,1.04654,1911.2,1911.1,41.84655]
[1742212818043,3.05554,1911.2,1911.1,41.84655]
[1742212818243,2.009,1911.2,1911.1,41.84655]
[1742212819144,1.3274,1911.2,1911.1,41.84655]
[1742212819657,1.3274,1911.2,1911.1,42.56145]
[1742212821357,1.3274,1911.2,1911.1,41.84655]
[1742212821552,2.0375,1911.2,1911.1,41.84655]
[1742212822750,3.08404,1911.2,1911.1,41.84655]
[1742212823250,3.08404,1911.2,1911.1,40.8]
[1742212823450,1.0466,1911.1,1911.0,2.403]
[1742212823650,1.0466,1911.1,1910.9,1.04666]
[1742212823651,1.04665,1911.0,1910.9,1.04666]
[1742212823850,1.04665,1911.0,1910.9,43.20986]
[1742212824054,2.35665,1911.0,1910.9,43.20986]
[1742212824250,1.31,1911.0,1910.9,43.20986]
[1742212825156,1.31,1911.0,1910.9,43.90436]
[1742212826356,3.335,1911.1,1911.0,1.04665]
[1742212826551,3.2078,1911.3,1911.2,1.04654]
[1742212826752,6.5428,1911.3,1911.2,1.04654]
[1742212826954,7.58929,1911.3,1911.2,1.04654]
[1742212827154,7.58929,1911.3,1911.2,41.84654]
[1742212827359,8.26899,1911.3,1911.2,41.84654]
[1742212827554,8.26899,1911.3,1911.2,40.8]
[1742212827755,9.65559,1911.3,1911.2,40.8]
[1742212828556,9.65559,1911.3,1911.2,41.84654]
[1742212828859,6.44779,1911.3,1911.2,41.84654]
[1742212829451,6.44779,1911.3,1911.2,1.04654]
[1742212829656,1.04654,1911.2,1911.1,1.04656]
[1742212829858,2.43314,1911.2,1911.1,1.0466]
[1742212830051,1.0466,1911.1,1911.0,41.84661]
[1742212830257,5.7682,1911.1,1911.0,41.84661]
[1742212830648,0.6797,1911.3,1911.0,44.0078]
[1742212830850,5.87,1912.7,1912.1,3.2078]
[1742212831060,0.09105466,1914.0,1912.6,3.2078]
[1742212831261,0.09105466,1914.0,1913.3,4.25319]
[1742212831262,1.04515,1913.8,1913.3,4.25319]
[1742212831469,5.87,1914.3,1913.7,3.2078]
[1742212831653,26.66761625,1914.4,1914.2,3.2078]
[1742212831964,26.66761625,1914.4,1913.8,3.692]
[1742212831965,34.58897135,1914.7,1914.6,1.04468]
[1742212832258,25.1329542,1914.7,1914.6,4.25248]
[1742212832453,25.1329542,1914.7,1914.6,4.35148]
[1742212832648,30.77032644,1915.2,1914.6,5.8068]
[1742212832854,30.77032644,1915.2,1915.1,4.25221]
[1742212833050,0.07032644,1915.2,1915.1,48.79521]
[1742212833256,5.87,1915.7,1915.6,1.04414]
[1742212833459,32.82168154,1915.8,1915.6,1.04414]
[1742212833460,38.69168154,1915.8,1915.6,3.2078]
[1742212833759,30.67434575,1915.8,1915.7,2.44878]
[1742212833962,7.15316934,1915.8,1915.7,2.44878]
[1742212834157,40.74303664,1916.5,1916.0,1.04388]
[1742212834349,40.74303664,1916.5,1915.5,9.51042361]
[1742212834350,34.87303664,1916.5,1916.1,9.44844]
[1742212834556,34.87303664,1916.5,1916.4,3.2078]
[1742212834859,5.87,1916.9,1916.5,1.04363]
[1742212835065,7.308,1917.4,1916.8,4.25125]
[1742212835253,5.87,1917.5,1916.9,9.44802]
[1742212835553,2.48101,1917.7,1916.9,9.44802]
[1742212835554,5.87,1917.6,1917.2,3.2078]
[1742212835760,0.00783842,1917.4,1917.3,1.4538]
[1742212836163,3.2078,1918.0,1917.5,1.0431]
[1742212836352,3.2078,1918.0,1917.6,5.2458]
[1742212836558,1.3139,1918.1,1917.7,1.4538]
[1742212836760,3.9209,1918.2,1917.8,3.2078]
[1742212836955,3.9209,1918.2,1917.9,1.04289]
[1742212837151,1.3897,1918.3,1917.9,3.854]
[1742212837352,3.2078,1918.6,1918.2,1.04268]
[1742212837555,3.2078,1918.6,1918.0,4.5459]
[1742212837854,0.00783842,1918.3,1918.2,1.05050842]
[1742212838160,1.30035493,1918.9,1918.2,7.08663842]
[1742212838361,3.2078,1919.2,1918.4,4.25038]
[1742212838669,3.2078,1919.2,1918.2,3.87883842]
[1742212838670,2.30174508,1919.2,1918.6,3.2078]
[1742212838973,3.2078,1919.3,1918.8,3.2078]
[1742212839161,3.2078,1919.3,1918.5,44.672]
[1742212839162,3.2078,1919.8,1919.2,3.2078]
[1742212839361,3.2078,1919.8,1919.3,3.896]
[1742212839562,0.00781779,1919.7,1919.4,3.2078]
[1742212839762,0.00781779,1919.7,1919.5,40.8]
[1742212839963,0.00781779,1919.7,1919.6,3.901]
[1742212840169,0.00781779,1919.7,1919.6,7.1088]
[1742212840358,0.00781779,1919.7,1919.6,10.65076]
[1742212840553,0.07905138,1920.1,1919.6,50.4088]
[1742212840755,3.2078,1920.6,1920.0,3.2078]
[1742212840960,3.2078,1920.6,1919.6,47.201]
[1742212840961,4.224,1922.5,1920.3,3.2078]
[1742212841160,3.2078,1921.4,1920.9,3.2078]
[1742212841358,5.87,1921.4,1920.9,7.4868]
[1742212841561,3.2078,1921.9,1921.3,3.2078]
[1742212841866,3.2078,1921.9,1921.5,3.2078]
[1742212842059,4.5897,1921.8,1921.7,1.04082]
[1742212842261,0.00517749,1921.8,1921.7,44.0078]
[1742212842662,0.00517749,1921.8,1921.7,40.8]
[1742212842858,6.42077749,1921.8,1921.4,0.00781779]
[1742212843061,4.5243,1921.7,1921.6,1.04088]
[1742212843361,4.5243,1921.7,1920.8,9.922]
[1742212843362,4.5243,1921.7,1920.7,3.2078]
[1742212843559,4.5243,1921.7,1920.2,7.32006]
[1742212843560,3.2078,1921.6,1920.8,3.2078]
[1742212843766,0.00517749,1921.8,1921.5,1.0409]
[1742212843958,3.2078,1921.6,1921.4,1.04096]
[1742212844164,32.14397749,1921.8,1921.0,3.21561779]
[1742212844370,28.93617749,1921.8,1921.3,3.2078]
[1742212844564,0.00517749,1921.8,1921.3,3.2078]
[1742212844765,0.00517749,1921.8,1921.1,3.2078]
[1742212845166,0.00517749,1921.8,1921.0,0.00781779]
[1742212845167,3.2078,1921.6,1921.2,1.04105]
[1742212845472,3.2078,1921.7,1921.0,0.00781779]
[1742212845671,3.2078,1921.7,1921.6,1.04088]
[1742212845974,0.00517749,1921.8,1921.2,5.075]
[1742212846168,7.49e-06,1921.8,1921.7,1.04082]
[1742212846363,7.49e-06,1921.8,1921.2,3.2078]
[1742212846970,7.49e-06,1921.8,1921.0,15.02281779]
[1742212846971,7.49e-06,1921.8,1921.7,1.04082]
[1742212849274,7.49e-06,1921.8,1921.6,1.04087]
[1742212849478,7.49e-06,1921.8,1921.3,3.2078]
[1742212849668,30.32890749,1921.8,1921.6,1.04084]
[1742212849862,3.2078,1921.7,1921.0,0.00781779]
[1742212850080,4.6397,1921.6,1921.0,0.00781779]
[1742212850267,3.2078,1921.4,1921.0,0.00781779]
[1742212850471,3.2078,1921.1,1920.7,1.04135]
[1742212850673,3.2078,1920.9,1920.2,3.2078]
[1742212850977,35.4929,1920.8,1920.7,1.04137]
[1742212851276,37.2938,1921.2,1920.2,3.2078]
[1742212851574,3.2078,1921.0,1920.3,1.4339]
[1742212851876,3.2078,1920.8,1920.6,1.0414]
[1742212852075,3.2078,1920.8,1920.5,0.00781779]
[1742212852375,1.4467,1920.7,1920.6,1.04142]
[1742212852570,34.924,1922.2,1920.7,2.60334]
[1742212852770,3.2078,1921.6,1921.0,3.2078]
[1742212853081,3.2078,1921.4,1921.3,1.04104]
[1742212853280,3.2078,1921.6,1921.1,42.1577]
[1742212853475,3.2078,1921.4,1921.1,42.1577]
[1742212853681,3.2078,1921.4,1921.3,1.04104]
[1742212853866,5.36081779,1921.4,1921.1,40.80781779]
[1742212854067,3.2078,1921.2,1921.1,40.80781779]
[1742212854267,3.2078,1921.2,1921.1,0.00781779]
[1742212854474,5.7078,1921.2,1920.2,1.3577]
[1742212854680,3.2078,1920.9,1920.5,40.8]
[1742212854880,34.239,1920.8,1920.5,41.84143]
[1742212855178,34.239,1920.8,1920.5,40.8]
[1742212855179,3.2078,1920.6,1920.5,40.8]
[1742212855383,3.2078,1920.6,1919.9,3.2078]
[1742212855580,3.2078,1920.4,1919.9,3.2078]
[1742212855776,3.2078,1920.4,1919.8,1.4109]
[1742212855981,3.2078,1920.3,1920.0,40.8]
[1742212856170,3.2078,1920.1,1920.0,40.80781779]
[1742212856373,39.9568,1920.1,1919.3,3.2078]
[1742212856570,3.2078,1919.5,1919.0,3.2078]
[1742212856880,3.9041,1920.1,1919.1,40.8]
[1742212857080,3.2078,1919.9,1919.4,3.2078]
[1742212857287,6.0673,1920.1,1919.1,40.8]
[1742212857582,3.2078,1919.8,1919.1,40.8]
[1742212857775,1.04177,1920.0,1919.5,0.00781779]
[1742212857776,5.409,1919.7,1919.5,0.00781779]
[1742212857972,7.59456228,1919.7,1919.1,40.8]
[1742212858182,4.38676228,1919.7,1919.1,40.8]
[1742212858478,4.38676228,1919.7,1919.3,1.04212]
[1742212858682,4.38676228,1919.7,1919.2,1.04218]
[1742212858888,4.38676228,1919.7,1919.1,40.8]
[1742212859179,7.59456228,1919.7,1919.3,0.00781779]
[1742212859382,3.2078,1919.5,1919.3,0.00781779]
[1742212859582,6.7224,1919.4,1919.3,0.00781779]
[1742212859978,6.7224,1919.4,1919.3,1.04993779]
[1742212860176,28.889,1919.5,1919.4,1.04207]
[1742212860382,3.2078,1919.6,1919.3,0.00781779]
[1742212860582,8.5818,1919.8,1919.3,1.04991779]
[1742212860786,3.2078,1919.6,1919.4,40.8]
[1742212860981,6.41505,1919.5,1919.3,0.00781779]
[1742212861187,3.2078,1919.4,1919.3,0.00781779]
[1742212861385,4.5459,1919.4,1919.3,0.00781779]
[1742212861685,1.3381,1919.4,1919.3,0.00781779]
[1742212862084,0.0381,1919.4,1919.3,1.04993779]
[1742212862281,5.361,1919.5,1919.3,1.04993779]
[1742212862282,8.5688,1919.5,1919.3,0.00781779]
[1742212862585,28.893,1919.9,1919.4,40.8]
[1742212862776,3.2078,1919.5,1919.4,40.8]
[1742212862978,8.5618,1919.5,1919.4,40.8]
[1742212863179,12.10382,1919.5,1919.4,40.8]
[1742212863881,11.0618,1919.5,1918.3,9.2078]
[1742212864083,3.2078,1918.6,1918.3,1.3128]
[1742212864280,3.2078,1918.4,1918.1,0.80366667]
[1742212864477,3.2078,1918.4,1917.9,4.25066]
[1742212864786,5.337,1918.3,1918.0,1.3418]
[1742212864984,3.2078,1918.1,1917.6,41.60366667]
[1742212865194,5.34481779,1918.3,1918.0,0.00781779]
[1742212865396,3.2078,1918.1,1918.0,0.00781779]
[1742212865987,4.25058,1918.1,1918.0,0.00781779]
[1742212866490,6.75058,1918.1,1918.0,0.00781779]
[1742212867093,6.75058,1918.1,1917.6,40.8]
[1742212867094,5.7078,1918.1,1917.6,40.8]
[1742212867287,4.25079,1917.7,1917.6,40.8]
[1742212867485,8.5198,1917.7,1917.6,40.8]
[1742212867686,5.312,1917.7,1917.6,40.8]
[1742212867894,5.318,1917.8,1917.6,40.8]
[1742212868089,5.318,1917.8,1917.7,1.4427]
[1742212868479,5.318,1917.8,1917.7,2.48569]
[1742212868682,5.305,1918.1,1917.8,1.04294]
[1742212868882,5.305,1918.1,1917.7,4.6505]
[1742212868883,4.2506,1918.1,1917.9,1.4427]
[1742212869088,8.5108,1918.1,1917.9,1.4427]
[1742212869289,9.55358,1918.1,1918.0,40.8]
[1742212869486,9.55358,1918.1,1917.6,3.2078]
[1742212869487,1.04293,1917.9,1917.6,3.2078]
[1742212869693,5.303,1917.8,1917.6,3.2078]
[1742212870194,9.55378,1917.8,1917.7,40.8]
[1742212870586,11.0108,1917.8,1917.5,1.34950437]
[1742212870789,1.04305,1917.6,1917.5,0.00520437]
[1742212870985,0.4693,1917.7,1917.5,0.00520437]
[1742212871186,1.04305,1917.6,1917.5,0.00520437]
[1742212871593,29.95505,1917.6,1917.5,0.00520437]
[1742212871790,33.16285,1917.6,1917.5,0.00520437]
[1742212872296,35.66285,1917.6,1917.5,0.00520437]
[1742212872798,34.6198,1917.6,1916.7,4.25131]
[1742212872986,1.04332,1917.1,1917.0,1.3443]
[1742212873191,1.04346,1916.9,1916.8,1.3443]
[1742212873490,2.60872,1916.8,1916.2,3.2078]
[1742212873687,3.2078,1916.6,1916.2,3.2078]
[1742212873888,5.266,1916.7,1916.3,1.3474]
[1742212874198,3.21561779,1916.6,1916.3,1.3474]
[1742212874400,1.04369,1916.5,1916.3,1.3474]
[1742212874588,5.264,1916.4,1916.3,1.3474]
[1742212874889,5.26781779,1916.6,1916.3,1.3474]
[1742212875095,1.05143779,1916.6,1916.3,1.3474]
[1742212875291,0.00781779,1916.6,1916.3,1.3474]
[1742212875493,0.00781779,1916.6,1916.3,2.39114]
[1742212875698,1.05141779,1916.6,1916.3,1.3474]
[1742212875896,1.04365,1916.5,1916.4,1.3474]
[1742212876800,5.26081779,1916.6,1916.4,2.39109]
[1742212876995,5.26081779,1916.6,1916.5,1.04365]
[1742212877198,28.919,1916.9,1916.5,1.04365]
[1742212877199,5.241,1916.7,1916.5,42.1711]
[1742212877396,6.28458,1916.7,1916.5,42.1711]
[1742212877604,5.241,1916.7,1916.5,42.1711]
[1742212878097,1.04376,1916.3,1916.2,3.2078]
[1742212878302,5.23,1916.3,1916.0,3.2078]
[1742212878497,5.23,1916.3,1916.1,1.3711]
[1742212878705,6.27376,1916.3,1916.1,42.1711]
[1742212879103,5.23,1916.3,1916.2,1.3711]
[1742212879400,5.215,1916.3,1916.2,1.3711]
[1742212879600,5.215,1916.3,1916.2,42.1711]
[1742212879898,1.04368,1916.5,1916.2,43.21491]
[1742212880099,1.04376,1916.3,1916.2,42.1711]
[1742212880305,5.87781779,1916.8,1916.2,42.1711]
[1742212880506,5.216,1917.2,1916.7,1.0435]
[1742212880703,5.216,1917.2,1916.8,1.395]
[1742212880704,1.04343,1916.9,1916.8,1.395]
[1742212881098,6.25643,1916.9,1916.8,1.395]
[1742212881603,8.75643,1916.9,1916.8,1.395]
[1742212882004,1.04357,1916.7,1916.3,4.25154]
[1742212882299,1.04365,1916.5,1916.4,1.395]
[1742212883302,3.54365,1916.5,1916.4,1.395]
[1742212883492,28.937,1916.7,1916.4,1.395]
[1742212883697,6.22864,1916.6,1916.4,1.395]
[1742212883896,1.04365,1916.5,1916.4,1.395]
[1742212884297,3.54365,1916.5,1916.4,1.395]
[1742212884500,1.04373,1916.4,1916.1,1.3331]
[1742212884703,5.172,1916.3,1916.1,1.3331]
[1742212884907,6.2158,1916.3,1916.1,1.3331]
[1742212885114,5.165,1916.2,1916.1,2.37695]
[1742212885298,5.165,1916.2,1916.1,1.3331]
[1742212885599,5.165,1916.2,1916.1,2.37697]
[1742212886001,6.91362,1916.6,1916.1,1.3331]
[1742212886199,6.91362,1916.6,1916.0,3.21561779]
[1742212886200,5.151,1916.5,1916.3,1.04374]
[1742212886413,5.87,1916.6,1916.4,1.4152]
[1742212886709,5.147,1916.5,1916.4,2.4589]
[1742212887010,28.937,1916.7,1916.6,1.04359]
[1742212887306,3.2078,1917.1,1916.6,1.04359]
[1742212887307,5.136,1917.1,1916.9,1.04343]
[1742212887510,28.945,1917.2,1916.9,1.04343]
[1742212887806,5.132,1917.1,1916.9,1.04343]
[1742212887998,5.132,1917.1,1916.9,40.8]
[1742212888310,5.132,1917.1,1916.9,41.84343]
[1742212888705,5.132,1917.1,1916.9,40.8]
[1742212889102,5.132,1917.1,1916.6,3.2078]
[1742212889103,1.0435,1916.8,1916.6,3.2078]
[1742212889410,8.3398,1917.1,1916.6,3.2078]
[1742212889411,1.04346,1916.9,1916.6,4.25139]
[1742212889602,9.6911,1917.1,1916.6,4.25139]
[1742212889603,5.124,1916.8,1916.6,3.2078]
[1742212889800,5.124,1916.8,1916.7,1.04354]
[1742212890202,28.945,1917.2,1916.9,1.04343]
[1742212890501,28.945,1917.2,1916.9,4.25123]
[1742212890502,34.059,1917.2,1916.9,4.25123]
[1742212890702,28.945,1917.2,1916.9,4.25123]
[1742212891003,28.945,1917.2,1916.9,3.2078]
[1742212891207,28.945,1917.2,1916.7,2.35361]
[1742212891208,1.05122779,1917.0,1916.7,5.56141]
[1742212891401,5.10981779,1917.0,1916.7,4.5179]
[1742212891609,1.04348,1916.8,1916.7,1.3101]
[1742212892109,9.64581779,1917.0,1916.7,1.3101]
[1742212892313,1.04346,1916.9,1916.7,1.3101]
[1742212892506,1.04348,1916.8,1916.7,1.3101]
[1742212892702,8.31761779,1917.0,1916.7,1.3101]
[1742212893010,0.00781779,1917.0,1916.7,4.5179]
[1742212893217,0.00781779,1917.0,1916.9,4.25123]
[1742212894105,0.00781779,1917.0,1916.9,4.95864944]
[1742212894312,5.069,1917.6,1916.9,54.76373057]
[1742212894515,5.069,1917.6,1917.5,1.0431]
[1742212894709,5.069,1917.6,1917.4,1.04313]
[1742212894907,28.945,1917.8,1917.4,1.3125]
[1742212895115,1.0431,1917.5,1917.4,1.3125]
[1742212895310,1.04325,1917.3,1917.1,3.2078]
[1742212895515,6.11725,1917.3,1917.2,1.3125]
[1742212895720,5.074,1917.3,1917.2,1.3125]
[1742212895911,6.11721,1917.3,1917.2,1.3125]
[1742212896111,6.11721,1917.3,1917.2,2.0170667]
[1742212896312,6.11721,1917.3,1917.2,0.7045667]
[1742212896623,1.04348,1916.8,1916.7,0.79683822]
[1742212896810,35.04548,1916.8,1916.7,0.79683822]
[1742212897212,34.002,1916.8,1916.7,1.84037822]
[1742212897422,34.002,1916.8,1916.7,1.04354]
[1742212897620,34.002,1916.8,1916.7,1.3125]
[1742212898120,34.002,1916.8,1916.7,2.35604]
[1742212898510,28.943,1916.8,1916.7,1.3125]
[1742212898717,28.943,1916.8,1916.7,2.35604]
[1742212898920,28.943,1916.8,1916.7,8.35604]
[1742212899620,1.04333,1917.1,1916.9,1.04339]
[1742212899809,1.04333,1917.1,1917.0,1.4302]
[1742212900123,8.2318,1917.2,1916.6,0.00781779]
[1742212900422,1.04332,1917.1,1917.0,1.4302]
[1742212900622,2.42736,1917.1,1916.8,1.04346]
[1742212901619,33.945,1917.3,1917.0,2.96745784]
[1742212901826,1.04332,1917.1,1917.0,1.334]
[1742212902218,2.44762,1917.1,1917.0,1.334]
[1742212903022,1.04348,1916.8,1916.7,9.2078]
[1742212903215,1.04345,1916.9,1916.7,11.58534]
[1742212903423,1.04348,1916.8,1916.7,10.5418]
[1742212903623,6.02646,1916.9,1916.7,10.5418]
[1742212903927,1.04348,1916.8,1916.7,1.334]
[1742212904121,1.04354,1916.7,1916.6,0.00781779]
[1742212905228,1.04354,1916.7,1916.6,1.32111779]
[1742212905720,3.2078,1916.9,1916.6,7.32111779]
[1742212905916,35.3279,1917.9,1916.9,2.60858]
[1742212906116,1.05090779,1917.6,1917.4,3.2078]
[1742212906317,0.00781779,1917.6,1917.4,44.0078]
[1742212906520,1.05086779,1917.6,1917.5,1.3133]